fUST/lending_fUST_20240227
["ID","MTS","AMOUNT","RATE_DAILY","PERIOD"]
[315369068,1708991443454,-500.0,0.00019999,2]
[315369070,1708991443464,-300.0,0.00019999,2]
[315369072,1708991443473,-500.0,0.00019999,2]
[315369074,1708991443481,-500.0,0.00019999,2]
[315369075,1708991443490,-500.0,0.00019999,2]
[315369076,1708991443499,-500.0,0.00019999,2]
[315369077,1708991443507,-500.0,0.00019999,2]
[315369078,1708991443518,-500.0,0.00019999,2]
[315369079,1708991443528,-500.0,0.00019999,2]
[315369080,1708991443537,-500.0,0.00019999,2]
[315369081,1708991443546,-500.0,0.00019999,2]
[315369082,1708991443554,-500.0,0.00019999,2]
[315369083,1708991443565,-500.0,0.00019999,2]
[315369084,1708991443575,-256.44210122,0.00019999,2]
[315369085,1708991443584,-399.333294,0.00019999,2]
[315369086,1708991443593,-500.0,0.0002,2]
[315369087,1708991443602,-500.0,0.0002,2]
[315369088,1708991443612,-500.0,0.0002,2]
[315369089,1708991443621,-665.88,0.0002,2]
[315369090,1708991443631,-1101.12,0.0002,2]
[315369091,1708991443640,-500.0,0.0002,2]
[315369092,1708991443650,-500.0,0.0002,2]
[315369093,1708991443659,-500.0,0.0002,2]
[315369094,1708991443668,-503.33235874,0.0002,2]
[315369095,1708991443678,-1147.54,0.0002,2]
[315369096,1708991443687,-550.55,0.0002,2]
[315369097,1708991443696,-500.0,0.0002,2]
[315369098,1708991443705,-500.0,0.0002,2]
[315369099,1708991443714,-520.13908972,0.0002,2]
[315369100,1708991443723,-1635.36,0.0002,2]
[315369101,1708991443732,-626.71,0.0002,2]
[315369102,1708991443741,-500.0,0.0002,2]
[315369103,1708991443750,-500.0,0.0002,2]
[315369104,1708991443758,-500.0,0.0002,2]
[315369105,1708991443768,-500.0,0.0002,2]
[315369106,1708991443777,-1105.83,0.0002,2]
[315369107,1708991443786,-500.0,0.0002,2]
[315369108,1708991443795,-500.0,0.0002,2]
[315369109,1708991443804,-1430.55,0.0002,2]
[315369110,1708991443813,-1938.41,0.0002,2]
[315369111,1708991443823,-500.0,0.0002,2]
[315369112,1708991443833,-1137.86,0.0002,2]
[315369113,1708991443841,-599.32113088,0.0002,2]
[315369114,1708991443850,-1224.94,0.0002,2]
[315369115,1708991443860,-500.0,0.0002,2]
[315369116,1708991443869,-500.0,0.0002,2]
[315369117,1708991443878,-793.97,0.0002,2]
[315369118,1708991443888,-1937.49,0.0002,2]
[315369119,1708991443897,-609.03734484,0.0002,2]
[315369120,1708991443906,-200.0,0.0002,2]
[315369121,1708991443915,-500.0,0.0002,2]
[315369122,1708991443924,-500.0,0.0002,2]
[315369123,1708991443933,-500.0,0.0002,2]
[315369124,1708991443942,-611.7,0.0002,2]
[315369125,1708991443951,-9518.34,0.0002,2]
[315369126,1708991444041,-500.0,0.0002,2]
[315369127,1708991444049,-1213.01884607,0.0002,2]
[315369128,1708991444059,-500.0,0.0002,2]
[315369129,1708991444068,-1106.32,0.0002,2]
[315369130,1708991444077,-3224.58,0.0002,2]
[315369131,1708991444087,-604.59,0.0002,2]
[315369132,1708991444096,-500.0,0.0002,2]
[315369133,1708991444105,-500.0,0.0002,2]
[315369134,1708991444114,-500.0,0.0002,2]
[315369136,1708991444123,-2615.28,0.0002,2]
[315369138,1708991444132,-500.0,0.0002,2]
[315369140,1708991444141,-1643.98,0.0002,2]
[315369142,1708991444150,-534.34,0.0002,2]
[315369144,1708991444159,-500.0,0.0002,2]
[315369146,1708991444169,-1968.58,0.0002,2]
[315369148,1708991444178,-500.0,0.0002,2]
[315369150,1708991444186,-500.0,0.0002,2]
[315369151,1708991444195,-1815.9,0.0002,2]
[315369153,1708991444205,-500.0,0.0002,2]
[315369155,1708991444213,-2347.07,0.0002,2]
[315369156,1708991444222,-17108.01,0.0002,2]
[315369157,1708991444231,-500.0,0.0002,2]
[315369158,1708991444240,-500.0,0.0002,2]
[315369159,1708991444249,-500.0,0.0002,2]
[315369160,1708991444259,-500.0,0.0002,2]
[315369162,1708991444269,-500.0,0.0002,2]
[315369164,1708991444278,-409.1306388,0.0002,2]
[315369166,1708991444287,-1990.31,0.0002,2]
[315369168,1708991444295,-500.0,0.0002,2]
[315369169,1708991444305,-500.0,0.0002,2]
[315369170,1708991444314,-1507.9,0.0002,2]
[315369171,1708991444323,-500.0,0.0002,2]
[315369172,1708991444332,-501.26705979,0.0002,2]
[315369173,1708991444340,-570.32,0.0002,2]
[315369174,1708991444350,-7320.56,0.0002,2]
[315369176,1708991444359,-1772.46,0.0002,2]
[315369177,1708991444368,-3218.84,0.0002,2]
[315369179,1708991444378,-16401.92,0.0002,2]
[315369180,1708991444387,-500.0,0.0002,2]
[315369182,1708991444396,-500.0,0.0002,2]
[315369184,1708991444405,-949.56,0.0002,2]
[315369186,1708991444413,-2549.21,0.0002,2]
[315369187,1708991444422,-500.0,0.0002,2]
[315369188,1708991444432,-3092.23,0.0002,2]
[315369189,1708991444440,-3493.17,0.0002,2]
[315369190,1708991444449,-500.0,0.0002,2]
[315369191,1708991444458,-2463.51589487,0.00020011,2]
[315369192,1708991444468,-248.23,0.0002003,7]
[315369193,1708991444477,-153.0,0.00020052,2]
[315369194,1708991444485,-153.0,0.00020055,2]
[315369195,1708991444494,-153.0,0.00020055,2]
[315369196,1708991444503,-153.0,0.00020055,2]
[315369197,1708991444512,-153.0,0.00020055,2]
[315369198,1708991444521,-166.666666,0.00020076,2]
[315369199,1708991444530,-175.5,0.000201,2]
[315369200,1708991444539,-2463.51589487,0.00020122,2]
[315369201,1708991444548,-328.8845409,0.00020126,2]
[315369202,1708991444557,-153.0,0.00020192,2]
[315369203,1708991444566,-2463.51589487,0.00020233,2]
[315369204,1708991444579,-243.58118859,0.00020271,2]
[315369205,1708991444588,-399.333294,0.00020272,2]
[315369206,1708991444597,-717.78,0.00020272,2]
[315369207,1708991444606,-717.78,0.00020272,2]
[315369208,1708991444616,-500.0,0.00020273,2]
[315369209,1708991444625,-500.0,0.00020273,2]
[315369210,1708991444634,-183.1900104,0.00020273,2]
[315369211,1708991444642,-665.88,0.00020273,2]
[315369212,1708991444652,-1101.12,0.00020273,2]
[315369213,1708991444662,-500.0,0.00020273,2]
[315369214,1708991444670,-1147.54,0.00020273,2]
[315369215,1708991444679,-550.55,0.00020273,2]
[315369216,1708991444688,-307.43320476,0.00020273,2]
[315369217,1708991444697,-1635.36,0.00020273,2]
[315369218,1708991444706,-626.71,0.00020273,2]
[315369219,1708991444715,-500.0,0.00020273,2]
[315369220,1708991444724,-500.0,0.00020273,2]
[315369221,1708991444733,-500.0,0.00020273,2]
[315369222,1708991444742,-1105.83,0.00020273,2]
[315369223,1708991444752,-500.0,0.00020273,2]
[315369224,1708991444760,-500.0,0.00020273,2]
[315369225,1708991444770,-1430.55,0.00020273,2]
[315369226,1708991444780,-1938.41,0.00020273,2]
[315369227,1708991444789,-500.0,0.00020273,2]
[315369228,1708991444798,-1137.86,0.00020273,2]
[315369229,1708991444807,-1224.94,0.00020273,2]
[315369230,1708991444818,-500.0,0.00020273,2]
[315369231,1708991444827,-500.0,0.00020273,2]
[315369232,1708991444836,-793.97,0.00020273,2]
[315369233,1708991444845,-1937.49,0.00020273,2]
[315369234,1708991444854,-500.0,0.00020273,2]
[315369235,1708991444863,-500.0,0.00020273,2]
[315369236,1708991444872,-611.7,0.00020273,2]
[315369237,1708991444881,-9518.34,0.00020273,2]
[315369238,1708991444890,-546.91782666,0.00020273,2]
[315369239,1708991444900,-500.0,0.00020273,2]
[315369240,1708991444909,-1106.32,0.00020273,2]
[315369241,1708991444918,-3224.58,0.00020273,2]
[315369242,1708991444927,-604.59,0.00020273,2]
[315369243,1708991444936,-500.0,0.00020273,2]
[315369244,1708991444946,-500.0,0.00020273,2]
[315369245,1708991444955,-2615.28,0.00020273,2]
[315369246,1708991444964,-1643.98,0.00020273,2]
[315369247,1708991444973,-534.34,0.00020273,2]
[315369248,1708991444982,-500.0,0.00020273,2]
[315369249,1708991444990,-1968.58,0.00020273,2]
[315369250,1708991445000,-501.57235247,0.00020273,2]
[315369251,1708991445009,-500.0,0.00020273,2]
[315369252,1708991445018,-1815.9,0.00020273,2]
[315369253,1708991445027,-500.0,0.00020273,2]
[315369254,1708991445036,-2347.07,0.00020273,2]
[315369255,1708991445045,-17108.01,0.00020273,2]
[315369256,1708991445054,-500.0,0.00020273,2]
[315369257,1708991445063,-500.0,0.00020273,2]
[315369258,1708991445073,-527.37919013,0.00020273,2]
[315369259,1708991445082,-500.0,0.00020273,2]
[315369260,1708991445091,-500.0,0.00020273,2]
[315369261,1708991445100,-1990.31,0.00020273,2]
[315369262,1708991445108,-500.0,0.00020273,2]
[315369263,1708991445117,-500.0,0.00020273,2]
[315369264,1708991445126,-1507.9,0.00020273,2]
[315369265,1708991445135,-500.0,0.00020273,2]
[315369266,1708991445145,-570.32,0.00020273,2]
[315369267,1708991445154,-7320.56,0.00020273,2]
[315369268,1708991445162,-1772.46,0.00020273,2]
[315369269,1708991445171,-3218.84,0.00020273,2]
[315369270,1708991445180,-16401.92,0.00020273,2]
[315369271,1708991445190,-500.0,0.00020273,2]
[315369272,1708991445199,-500.0,0.00020273,2]
[315369273,1708991445208,-949.56,0.00020273,2]
[315369274,1708991445218,-2549.21,0.00020273,2]
[315369275,1708991445226,-500.0,0.00020273,2]
[315369276,1708991445235,-3092.23,0.00020273,2]
[315369277,1708991445244,-3493.17,0.00020273,2]
[315369278,1708991445253,-500.0,0.00020273,2]
[315369279,1708991445262,-2463.51589487,0.00020344,2]
[315369280,1708991445271,-2463.51589487,0.00020456,2]
[315369281,1708991445280,-240.7634129,0.00020466,2]
[315369282,1708991445289,-328.8845409,0.00020513,2]
[315369283,1708991445298,-166.666666,0.00020524,2]
[315369284,1708991445307,-399.333294,0.00020546,2]
[315369285,1708991445316,-243.58118859,0.00020546,2]
[315369286,1708991445326,-717.78,0.00020546,2]
[315369287,1708991445336,-717.78,0.00020546,2]
[315369288,1708991445344,-500.0,0.00020547,2]
[315369289,1708991445353,-665.88,0.00020547,2]
[315369290,1708991445362,-1101.12,0.00020547,2]
[315369291,1708991445371,-500.0,0.00020547,2]
[315369292,1708991445380,-1147.54,0.00020547,2]
[315369293,1708991445389,-550.55,0.00020547,2]
[315369294,1708991445398,-1635.36,0.00020547,2]
[315369295,1708991445407,-626.71,0.00020547,2]
[315369296,1708991445416,-500.0,0.00020547,2]
[315369297,1708991445425,-500.0,0.00020547,2]
[315369298,1708991445433,-341.76252739,0.00020547,2]
[315369299,1708991445442,-1105.83,0.00020547,2]
[315369300,1708991445450,-500.0,0.00020547,2]
[315369301,1708991445459,-500.0,0.00020547,2]
[315369302,1708991445469,-1430.55,0.00020547,2]
[315369303,1708991445478,-1938.41,0.00020547,2]
[315369304,1708991445487,-1137.86,0.00020547,2]
[315369305,1708991445496,-1224.94,0.00020547,2]
[315369306,1708991445504,-500.0,0.00020547,2]
[315369307,1708991445513,-508.16056431,0.00020547,2]
[315369308,1708991445523,-793.97,0.00020547,2]
[315369309,1708991445531,-1937.49,0.00020547,2]
[315369310,1708991445540,-500.0,0.00020547,2]
[315369311,1708991445550,-500.0,0.00020547,2]
[315369312,1708991445558,-611.7,0.00020547,2]
[315369313,1708991445571,-9518.34,0.00020547,2]
[315369314,1708991445580,-500.0,0.00020547,2]
[315369315,1708991445589,-1106.32,0.00020547,2]
[315369316,1708991445598,-3224.58,0.00020547,2]
[315369317,1708991445607,-604.59,0.00020547,2]
[315369318,1708991445616,-505.19240896,0.00020547,2]
[315369319,1708991445625,-500.0,0.00020547,2]
[315369320,1708991445635,-2615.28,0.00020547,2]
[315369321,1708991445644,-1643.98,0.00020547,2]
[315369322,1708991445654,-534.34,0.00020547,2]
[315369323,1708991445663,-500.0,0.00020547,2]
[315369324,1708991445672,-1968.58,0.00020547,2]
[315369325,1708991445681,-500.0,0.00020547,2]
[315369326,1708991445690,-1815.9,0.00020547,2]
[315369327,1708991445699,-500.0,0.00020547,2]
[315369328,1708991445709,-2347.07,0.00020547,2]
[315369329,1708991445718,-17108.01,0.00020547,2]
[315369330,1708991445728,-500.0,0.00020547,2]
[315369331,1708991445738,-500.0,0.00020547,2]
[315369332,1708991445747,-500.0,0.00020547,2]
[315369333,1708991445756,-1990.31,0.00020547,2]
[315369334,1708991445766,-500.0,0.00020547,2]
[315369335,1708991445775,-1507.9,0.00020547,2]
[315369336,1708991445784,-500.0,0.00020547,2]
[315369337,1708991445793,-570.32,0.00020547,2]
[315369338,1708991445804,-7320.56,0.00020547,2]
[315369339,1708991445813,-1772.46,0.00020547,2]
[315369340,1708991445823,-3218.84,0.00020547,2]
[315369341,1708991445833,-16401.92,0.00020547,2]
[315369342,1708991445843,-500.0,0.00020547,2]
[315369343,1708991445853,-500.0,0.00020547,2]
[315369344,1708991445863,-949.56,0.00020547,2]
[315369345,1708991445872,-2549.21,0.00020547,2]
[315369346,1708991445882,-500.0,0.00020547,2]
[315369347,1708991445891,-3092.23,0.00020547,2]
[315369348,1708991445900,-3493.17,0.00020547,2]
[315369349,1708991445909,-500.0,0.00020547,2]
[315369350,1708991445919,-2463.51589487,0.00020567,2]
[315369351,1708991445928,-957.26527048,0.00020575,2]
[315369352,1708991445937,-5000.0,0.00020668,2]
[315369353,1708991445946,-5000.0,0.00020668,2]
[315369354,1708991445954,-1000.0,0.00020672,2]
[315369355,1708991445964,-2463.51589487,0.00020678,2]
[315369356,1708991445972,-1000.0,0.00020686,2]
[315369357,1708991445981,-3937.62471381,0.00020697,2]
[315369358,1708991445991,-1040.62647277,0.00020697,2]
[315369362,1708991446078,-1000.0,0.00020698,2]
[315369364,1708991446086,-29666.99507618,0.00020699,2]
[315369366,1708991446095,-479.75237612,0.00020701,2]
[315369367,1708991446104,-1000.0,0.00020704,2]
[315369368,1708991446113,-3201.89252236,0.00020706,2]
[315369369,1708991446122,-526.66991165,0.00020711,2]
[315369370,1708991446132,-1986.78886233,0.00020716,2]
[315369371,1708991446141,-1360.51411561,0.00020716,2]
[315369372,1708991446150,-1000.0,0.00020738,2]
[315369373,1708991446159,-153.0,0.00020742,2]
[315369374,1708991446169,-1000.0,0.00020782,2]
[315369375,1708991446178,-2463.51589487,0.00020789,2]
[315369376,1708991446188,-1000.0,0.00020789,2]
[315369377,1708991446197,-1000.0,0.00020797,2]
[315369378,1708991446207,-4698.57354043,0.000208,2]
[315369379,1708991446216,-1000.0,0.00020808,2]
[315369380,1708991446224,-717.78,0.00020818,2]
[315369382,1708991446233,-273.23870182,0.00020819,2]
[315369384,1708991446243,-471.63876453,0.00020819,2]
[315369386,1708991446252,-275.35808168,0.00020819,2]
[315369388,1708991446261,-179.43256387,0.00020819,2]
[315369389,1708991446270,-292.07022726,0.00020819,2]
[315369390,1708991446280,-951.21450269,0.00020819,2]
[315369391,1708991446290,-290.05288383,0.00020819,2]
[315369392,1708991446300,-280.85132988,0.00020819,2]
[315369393,1708991446309,-4699.22949954,0.0002082,2]
[315369394,1708991446318,-717.78,0.0002082,2]
[315369395,1708991446327,-717.78,0.0002082,2]
[315369396,1708991446336,-500.0,0.00020821,2]
[315369398,1708991446344,-665.88,0.00020821,2]
[315369400,1708991446354,-1101.12,0.00020821,2]
[315369402,1708991446363,-500.0,0.00020821,2]
[315369404,1708991446371,-1147.54,0.00020821,2]
[315369406,1708991446380,-550.55,0.00020821,2]
[315369408,1708991446389,-1635.36,0.00020821,2]
[315369410,1708991446398,-626.71,0.00020821,2]
[315369412,1708991446407,-500.0,0.00020821,2]
[315369414,1708991446416,-253.52730355,0.00020821,2]
[315369415,1708991446425,-1105.83,0.00020821,2]
[315369416,1708991446435,-500.0,0.00020821,2]
[315369418,1708991446444,-563.76769332,0.00020821,2]
[315369420,1708991446453,-1430.55,0.00020821,2]
[315369422,1708991446462,-1938.41,0.00020821,2]
[315369424,1708991446471,-1137.86,0.00020821,2]
[315369426,1708991446481,-1224.94,0.00020821,2]
[315369428,1708991446490,-500.0,0.00020821,2]
[315369430,1708991446499,-793.97,0.00020821,2]
[315369432,1708991446508,-1937.49,0.00020821,2]
[315369433,1708991446518,-500.0,0.00020821,2]
[315369434,1708991446526,-500.0,0.00020821,2]
[315369435,1708991446536,-611.7,0.00020821,2]
[315369436,1708991446544,-9518.34,0.00020821,2]
[315369437,1708991446554,-215.41082112,0.00020821,2]
[315369438,1708991446562,-1106.32,0.00020821,2]
[315369439,1708991446573,-3224.58,0.00020821,2]
[315369440,1708991446583,-604.59,0.00020821,2]
[315369441,1708991446592,-2615.28,0.00020821,2]
[315369442,1708991446601,-1643.98,0.00020821,2]
[315369443,1708991446610,-534.34,0.00020821,2]
[315369444,1708991446620,-1968.58,0.00020821,2]
[315369445,1708991446629,-500.0,0.00020821,2]
[315369446,1708991446639,-1815.9,0.00020821,2]
[315369447,1708991446648,-500.0,0.00020821,2]
[315369448,1708991446658,-2347.07,0.00020821,2]
[315369449,1708991446667,-17108.01,0.00020821,2]
[315369450,1708991446677,-500.0,0.00020821,2]
[315369451,1708991446686,-243.47873614,0.00020821,2]
[315369452,1708991446695,-500.0,0.00020821,2]
[315369453,1708991446704,-1990.31,0.00020821,2]
[315369454,1708991446713,-500.0,0.00020821,2]
[315369455,1708991446723,-1507.9,0.00020821,2]
[315369456,1708991446733,-500.0,0.00020821,2]
[315369457,1708991446742,-570.32,0.00020821,2]
[315369458,1708991446751,-7320.56,0.00020821,2]
[315369459,1708991446760,-1772.46,0.00020821,2]
[315369460,1708991446770,-3218.84,0.00020821,2]
[315369461,1708991446779,-16401.92,0.00020821,2]
[315369462,1708991446788,-500.0,0.00020821,2]
[315369463,1708991446797,-500.0,0.00020821,2]
[315369464,1708991446806,-949.56,0.00020821,2]
[315369465,1708991446817,-2549.21,0.00020821,2]
[315369466,1708991446826,-500.0,0.00020821,2]
[315369467,1708991446835,-3092.23,0.00020821,2]
[315369468,1708991446845,-3493.17,0.00020821,2]
[315369469,1708991446854,-500.0,0.00020821,2]
[315369470,1708991446863,-159.08331107,0.00020824,2]
[315369471,1708991446872,-1000.0,0.00020824,2]
[315369472,1708991446881,-20932.81229175,0.00020849,2]
[315369473,1708991446890,-5000.0,0.0002085,2]
[315369474,1708991446900,-1000.0,0.00020851,2]
[315369475,1708991446909,-1000.0,0.00020856,2]
[315369476,1708991446919,-300.0,0.00020869,2]
[315369477,1708991446928,-221.04141408,0.00020871,2]
[315369478,1708991446937,-153.65780855,0.00020878,2]
[315369479,1708991446946,-234.3646,0.00020895,2]
[315369480,1708991446956,-5000.0,0.00020896,2]
[315369481,1708991446965,-5000.0,0.00020896,2]
[315369482,1708991446974,-57285.04000591,0.00020897,2]
[315369483,1708991446984,-5000.0,0.00020897,2]
[315369484,1708991446993,-328.8845409,0.000209,2]
[315369485,1708991447002,-2463.51589487,0.000209,2]
[315369486,1708991447011,-1000.0,0.00020935,2]
[315369487,1708991447021,-151.62887317,0.00020958,2]
[315369488,1708991447030,-295.56467022,0.00020962,2]
[315369489,1708991447039,-428.88796945,0.00020963,2]
[315369490,1708991447048,-717.78,0.00020963,2]
[315369491,1708991447058,-50000.0,0.00020964,2]
[315369492,1708991447067,-166.666666,0.00020973,2]
[315369493,1708991447075,-160.0,0.00020999,2]
[315369494,1708991447084,-160.0,0.00020999,2]
[315369495,1708991447093,-160.0,0.00020999,2]
[315369496,1708991447103,-717.78,0.00020999,2]
[315369497,1708991447111,-717.78,0.00020999,2]
[315369498,1708991447120,-717.78,0.00020999,2]
[315369499,1708991447129,-717.78,0.00020999,2]
[315369500,1708991447138,-717.78,0.00020999,2]
[315369501,1708991447147,-717.79471994,0.00020999,2]
[315369502,1708991447156,-181.5,0.00020999,2]
[315369503,1708991447165,-195.0,0.00020999,2]
[315369504,1708991447174,-195.0,0.00020999,2]
[315369505,1708991447183,-195.0,0.00020999,2]
[315369506,1708991447192,-399.333294,0.00020999,2]
[315369507,1708991447201,-195.0,0.00020999,2]
[315369508,1708991447210,-195.0,0.00020999,2]
[315369509,1708991447219,-195.0,0.00020999,2]
[315369510,1708991447228,-243.58118859,0.00020999,2]
[315369511,1708991447237,-315.90332064,0.00020999,2]
[315369512,1708991447246,-195.0,0.00020999,2]
[315369513,1708991447255,-88063.34741115,0.00021,2]
[315369515,1708991449865,-159.80558045,0.00019177,2]
[315369516,1708991449874,-1600.10761346,0.00019177,2]
[315369517,1708991449884,-500.0,0.00019178,2]
[315369518,1708991449894,-174.55924258,0.00019178,2]
[315369519,1708991449903,-500.0,0.00019178,2]
[315369520,1708991449913,-500.0,0.00019178,2]
[315369521,1708991449922,-500.0,0.00019178,2]
[315369522,1708991449931,-166.666666,0.00019178,2]
[315369523,1708991449941,-500.0,0.00019452,2]
[315369524,1708991449950,-500.0,0.00019452,2]
[315369525,1708991449959,-500.0,0.00019452,2]
[315369526,1708991449970,-166.666666,0.00019627,2]
[315369527,1708991449979,-8224.02869587,0.00019724,2]
[315369528,1708991449989,-500.0,0.00019726,2]
[315369529,1708991449998,-500.0,0.00019726,2]
[315369530,1708991450007,-500.0,0.00019726,2]
[315369531,1708991450017,-500.0,0.0002,2]
[315369532,1708991450027,-500.0,0.0002,2]
[315369533,1708991450036,-613.63,0.0002,2]
[315369534,1708991450045,-166.666666,0.00020076,2]
[315369535,1708991450054,-273.38,0.00020263,3]
[315369536,1708991450064,-500.0,0.00020273,2]
[315369537,1708991450074,-413.8,0.00020273,2]
[315369538,1708991450083,-166.666666,0.00020524,2]
[315369539,1708991450092,-500.0,0.00020547,2]
[315369540,1708991450101,-500.0,0.00020821,2]
[315369541,1708991450111,-166.666666,0.00020973,2]
[315369542,1708991450120,-2920.36044958,0.0002099,3]
[315369543,1708991450134,-7496.03955042,0.0002099,3]
[315369544,1708991450144,-37671.91501344,0.00021,2]
[315369547,1708991749732,20583.9415417,0.00018081,2]
[315369548,1708991754603,938.7586593,0.00018081,2]
[315369549,1708991786967,208.4654969,0.00018081,2]
[315369551,1708992338319,5000.0,0.000192,6]
[315369552,1708992349120,5000.0,0.000192,6]
[315369553,1708992357571,5000.0,0.000192,6]
[315369554,1708992366586,5000.0,0.000192,6]
[315369555,1708992375221,5000.0,0.000192,6]
[315369556,1708992453417,785.7553477,0.00017844,2]
[315369595,1708992632228,-281.44189552,0.00018123,2]
[315369596,1708992632239,-300.77936664,0.00018124,2]
[315369597,1708992632248,-883.13049723,0.00018125,2]
[315369598,1708992632258,-744.0952955,0.00018126,2]
[315369599,1708992632268,-1295.66297811,0.00018126,2]
[315369623,1708992637743,-304.44463535,0.00018126,2]
[315369624,1708992637753,-430.5223503,0.00018253,2]
[315369626,1708992637761,-1010.19545673,0.000189,2]
[315369628,1708992637771,-653.63793711,0.00019078,2]
[315369629,1708992637780,-169.6556243,0.00019078,2]
[315369631,1708992637790,-159.80558045,0.00019176,2]
[315369633,1708992637798,-7627.90971867,0.00019177,2]
[315369635,1708992637807,-484.28906895,0.00019178,2]
[315369637,1708992637817,-552.19583959,0.00019178,2]
[315369639,1708992637825,-500.0,0.00019178,2]
[315369641,1708992637834,-500.0,0.00019178,2]
[315369643,1708992637843,-500.0,0.00019178,2]
[315369645,1708992637852,-500.0,0.00019178,2]
[315369647,1708992637862,-500.0,0.00019178,2]
[315369649,1708992637871,-500.0,0.00019178,2]
[315369651,1708992637880,-574.29,0.00019178,2]
[315369653,1708992637889,-500.0,0.00019178,2]
[315369655,1708992637898,-500.0,0.00019178,2]
[315369657,1708992637907,-500.20272728,0.00019178,2]
[315369659,1708992637916,-500.0,0.00019178,2]
[315369661,1708992637925,-629.55043623,0.00019178,2]
[315369663,1708992637935,-500.0,0.00019178,2]
[315369665,1708992637948,-292.0474049,0.00019178,2]
[315369667,1708992637957,-478.86577409,0.00019178,2]
[315369669,1708992637966,-500.0,0.00019178,2]
[315369671,1708992637976,-500.0,0.00019178,2]
[315369673,1708992637986,-500.0,0.00019178,2]
[315369675,1708992637996,-614.82421978,0.00019178,2]
[315369677,1708992638006,-500.50769641,0.00019178,2]
[315369679,1708992638018,-500.0,0.00019178,2]
[315369681,1708992638028,-500.0,0.00019178,2]
[315369683,1708992638038,-364.45423613,0.00019178,2]
[315369685,1708992638048,-500.0,0.00019178,2]
[315369687,1708992638058,-500.0,0.00019178,2]
[315369689,1708992638068,-644.89508624,0.00019178,2]
[315369691,1708992638078,-500.0,0.00019178,2]
[315369693,1708992638089,-500.0,0.00019178,2]
[315369695,1708992638099,-500.0,0.00019178,2]
[315369697,1708992638109,-500.68895691,0.00019178,2]
[315369699,1708992638119,-500.0,0.00019178,2]
[315369701,1708992638129,-500.0,0.00019178,2]
[315369703,1708992638138,-500.0,0.00019178,2]
[315369705,1708992638147,-500.0,0.00019178,2]
[315369707,1708992638157,-581.87051322,0.00019178,2]
[315369708,1708992638165,-500.0,0.00019178,2]
[315369709,1708992638174,-500.0,0.00019178,2]
[315369710,1708992638183,-500.0,0.00019178,2]
[315369711,1708992638192,-500.0,0.00019178,2]
[315369712,1708992638201,-500.0,0.00019178,2]
[315369713,1708992638211,-500.0,0.00019178,2]
[315369714,1708992638220,-500.0,0.00019178,2]
[315369715,1708992638229,-500.0,0.00019178,2]
[315369716,1708992638239,-501.78484159,0.00019178,2]
[315369717,1708992638248,-500.0,0.00019178,2]
[315369718,1708992638257,-500.0,0.00019178,2]
[315369719,1708992638269,-1263.81,0.00019178,2]
[315369720,1708992638278,-500.0,0.00019178,2]
[315369721,1708992638287,-500.0,0.00019178,2]